[Event "Juniorallsvenskan 2019, Division 1 and 2"]
[Site "Molnlycke kulturhus, Biblioteksgatan 2, Molnlycke, Sweden"]
[Date "2019.11.22"]
[Round "1.17"]
[White "Jonsson, Filip"]
[Black "Ytterberg, Felix"]
[Result "1-0"]
[TimeControl "90 minutes + 30 seconds per move from move one"]
[WhiteFideId "1739441"]
[BlackFideId "1740687"]
[WhiteElo "1952"]
[BlackElo "2005"]

1. c4 {[%clk 01:30:56]} {[%emt 00:00:02]} e5 {[%clk 01:27:21]} {[%emt
00:03:35]} 2. g3 {[%clk 01:31:18]} {[%emt 00:00:12]} d6 {[%clk 01:27:34]}
{[%emt 00:00:17]} 3. Bg2 {[%clk 01:31:38]} {[%emt 00:00:10]} f5 {[%clk
01:27:54]} {[%emt 00:00:08]} 4. Nc3 {[%clk 01:31:16]} {[%emt 00:00:55]} Nf6
{[%clk 01:27:53]} {[%emt 00:00:30]} 5. d3 {[%clk 01:31:24]} {[%emt 00:00:23]}
Be7 {[%clk 01:27:58]} {[%emt 00:00:24]} 6. Nf3 {[%clk 01:29:58]} {[%emt
00:01:57]} c6 {[%clk 01:27:51]} {[%emt 00:00:36]} 7. b4 {[%clk 01:28:29]}
{[%emt 00:02:00]} Na6 {[%clk 01:27:54]} {[%emt 00:00:27]} 8. Rb1 {[%clk
01:28:36]} {[%emt 00:00:23]} O-O {[%clk 01:27:03]} {[%emt 00:01:17]} 9. O-O
{[%clk 01:28:48]} {[%emt 00:00:22]} h6 {[%clk 01:26:51]} {[%emt 00:00:41]} 10.
b5 {[%clk 01:21:42]} {[%emt 00:07:38]} Nc5 {[%clk 01:26:59]} {[%emt 00:00:19]}
11. bxc6 {[%clk 01:21:33]} {[%emt 00:00:42]} bxc6 {[%clk 01:27:09]} {[%emt
00:00:19]} 12. Ba3 {[%clk 01:20:40]} {[%emt 00:01:24]} Ne6 {[%clk 01:27:00]}
{[%emt 00:00:34]} 13. Nh4 {[%clk 01:20:06]} {[%emt 00:01:08]} Qd7 {[%clk
01:21:40]} {[%emt 00:05:50]} 14. Ng6 {[%clk 01:11:11]} {[%emt 00:09:24]} Rf7
{[%clk 01:21:50]} {[%emt 00:00:21]} 15. Qa4 {[%clk 01:10:57]} {[%emt 00:00:44]}
Nd8 {[%clk 01:21:28]} {[%emt 00:00:51]} 16. c5 {[%clk 01:05:46]} {[%emt
00:05:43]} Ne8 {[%clk 01:20:43]} {[%emt 00:01:12]} 17. Nxe7+ {[%clk 00:50:37]}
{[%emt 00:15:41]} Rxe7 {[%clk 01:17:33]} {[%emt 00:03:39]} 18. cxd6 {[%clk
00:50:23]} {[%emt 00:00:46]} Nxd6 {[%clk 01:17:26]} {[%emt 00:00:35]} 19. Nd5
{[%clk 00:50:41]} {[%emt 00:00:13]} Rf7 {[%clk 01:17:00]} {[%emt 00:00:55]} 20.
Nb6 {[%clk 00:50:39]} {[%emt 00:00:34]} axb6 {[%clk 01:13:58]} {[%emt
00:03:32]} 21. Qxa8 {[%clk 00:50:47]} {[%emt 00:00:21]} Bb7 {[%clk 01:14:09]}
{[%emt 00:00:20]} 22. Qa4 {[%clk 00:48:58]} {[%emt 00:02:18]} Nb5 {[%clk
01:14:29]} {[%emt 00:00:10]} 23. Bb2 {[%clk 00:48:36]} {[%emt 00:00:52]} Re7
{[%clk 01:14:16]} {[%emt 00:00:43]} 24. Qb3+ {[%clk 00:46:22]} {[%emt
00:02:44]} Kh8 {[%clk 01:12:07]} {[%emt 00:02:39]} 25. a4 {[%clk 00:45:50]}
{[%emt 00:01:03]} Nd4 {[%clk 01:12:02]} {[%emt 00:00:35]} 26. Bxd4 {[%clk
00:46:03]} {[%emt 00:00:16]} exd4 {[%clk 01:12:21]} {[%emt 00:00:11]} 27. Qxb6
{[%clk 00:46:14]} {[%emt 00:00:19]} Rxe2 {[%clk 01:12:29]} {[%emt 00:00:18]} 28.
Rfe1 {[%clk 00:45:45]} {[%emt 00:01:03]} Rd2 {[%clk 01:10:54]} {[%emt
00:02:05]} 29. Qc5 {[%clk 00:44:58]} {[%emt 00:01:17]} Rxd3 {[%clk 01:10:39]}
{[%emt 00:00:45]} 30. Re7 {[%clk 00:45:09]} {[%emt 00:00:18]} Ne6 {[%clk
01:10:26]} {[%emt 00:00:44]} 31. Qb4 {[%clk 00:40:44]} {[%emt 00:04:55]} Qc8
{[%clk 01:09:16]} {[%emt 00:01:40]} 32. Rxb7 {[%clk 00:40:51]} {[%emt
00:00:22]} Kh7 {[%clk 01:09:17]} {[%emt 00:00:29]} 33. Qe7 {[%clk 00:40:04]}
{[%emt 00:01:18]} Rc3 {[%clk 01:09:05]} {[%emt 00:00:41]} 34. Rb8 {[%clk
00:39:03]} {[%emt 00:01:32]} Rc1+ {[%clk 01:08:22]} {[%emt 00:01:14]} 35. Rxc1
{[%clk 00:39:16]} {[%emt 00:00:18]} Qxb8 {[%clk 01:08:45]} {[%emt 00:00:06]} 36.
Qxe6 {[%clk 00:39:34]} {[%emt 00:00:12]} Qa7 {[%clk 01:08:17]} {[%emt
00:00:46]} 37. Qxf5+ {[%clk 00:39:50]} {[%emt 00:00:25]} g6 {[%clk 01:08:28]}
{[%emt 00:00:20]} 38. Qf6 {[%clk 00:39:55]} {[%emt 00:00:23]} d3 {[%clk
01:08:36]} {[%emt 00:00:22]} 39. Re1 {[%clk 00:39:28]} {[%emt 00:00:58]} d2
{[%clk 01:08:33]} {[%emt 00:00:33]} 40. Re7+ {[%clk 00:39:50]} {[%emt
00:00:07]} Qxe7 {[%clk 01:08:54]} {[%emt 00:00:11]} 41. Qxe7+ {[%clk 00:40:14]}
{[%emt 00:00:05]} Kg8 {[%clk 01:09:05]} {[%emt 00:00:19]} 42. Qd8+ {[%clk
00:40:36]} {[%emt 00:00:08]} Kf7 {[%clk 01:09:24]} {[%emt 00:00:11]} 43. Qxd2
{[%clk 00:40:59]} {[%emt 00:00:07]} 1-0

[Event "Juniorallsvenskan 2019, Division 1 and 2"]
[Site "Molnlycke kulturhus, Biblioteksgatan 2, Molnlycke, Sweden"]
[Date "2019.11.22"]
[Round "1.18"]
[White "Ivarsson, Sebastian"]
[Black "Derdic, Valentin"]
[Result "1-0"]
[TimeControl "90 minutes + 30 seconds per move from move one"]
[WhiteFideId "1738593"]
[BlackFideId "1763687"]
[WhiteElo "1969"]
[BlackElo "1647"]

1. d4 {[%clk 01:29:50]} {[%emt 00:01:10]} d5 {[%clk 01:29:24]} {[%emt
00:01:37]} 2. c4 {[%clk 01:29:37]} {[%emt 00:00:42]} e6 {[%clk 01:29:25]}
{[%emt 00:00:30]} 3. Nf3 {[%clk 01:29:53]} {[%emt 00:00:15]} Nf6 {[%clk
01:29:06]} {[%emt 00:00:48]} 4. Nc3 {[%clk 01:30:00]} {[%emt 00:00:22]} Be7
{[%clk 01:29:01]} {[%emt 00:00:36]} 5. Bg5 {[%clk 01:29:00]} {[%emt 00:01:29]}
O-O {[%clk 01:27:00]} {[%emt 00:02:31]} 6. e3 {[%clk 01:28:40]} {[%emt
00:00:50]} Nbd7 {[%clk 01:24:53]} {[%emt 00:02:36]} 7. Rc1 {[%clk 01:25:30]}
{[%emt 00:03:41]} c6 {[%clk 01:17:28]} {[%emt 00:07:55]} 8. Bd3 {[%clk
01:25:36]} {[%emt 00:00:25]} dxc4 {[%clk 01:17:16]} {[%emt 00:00:43]} 9. Bxc4
{[%clk 01:25:58]} {[%emt 00:00:07]} b5 {[%clk 01:17:26]} {[%emt 00:00:20]} 10.
Bd3 {[%clk 01:26:06]} {[%emt 00:00:21]} Bb7 {[%clk 01:16:56]} {[%emt 00:01:00]}
11. O-O {[%clk 01:25:11]} {[%emt 00:01:26]} a6 {[%clk 01:16:26]} {[%emt
00:01:00]} 12. Qe2 {[%clk 01:25:04]} {[%emt 00:00:37]} Rc8 {[%clk 01:14:14]}
{[%emt 00:02:41]} 13. Rfd1 {[%clk 01:23:23]} {[%emt 00:02:11]} Re8 {[%clk
01:10:18]} {[%emt 00:04:26]} 14. e4 {[%clk 01:02:57]} {[%emt 00:20:56]} h6
{[%clk 01:07:45]} {[%emt 00:03:04]} 15. Bh4 {[%clk 01:02:13]} {[%emt 00:01:14]}
c5 {[%clk 00:58:09]} {[%emt 00:10:05]} 16. e5 {[%clk 00:48:03]} {[%emt
00:14:40]} Nh7 {[%clk 00:42:40]} {[%emt 00:15:59]} 17. Bxe7 {[%clk 00:42:08]}
{[%emt 00:06:25]} Qxe7 {[%clk 00:41:06]} {[%emt 00:02:03]} 18. Ne4 {[%clk
00:34:34]} {[%emt 00:08:07]} cxd4 {[%clk 00:38:47]} {[%emt 00:02:48]} 19. Rxc8
{[%clk 00:30:57]} {[%emt 00:04:07]} Rxc8 {[%clk 00:36:43]} {[%emt 00:02:32]} 20.
Nd6 {[%clk 00:31:02]} {[%emt 00:00:26]} Bxf3 {[%clk 00:32:07]} {[%emt
00:05:07]} 21. Nxc8 {[%clk 00:28:29]} {[%emt 00:03:02]} Qc5 {[%clk 00:32:22]}
{[%emt 00:00:15]} 22. Qxf3 {[%clk 00:26:17]} {[%emt 00:02:42]} Qxc8 {[%clk
00:30:09]} {[%emt 00:02:44]} 23. Bxh7+ {[%clk 00:26:05]} {[%emt 00:00:42]} Kxh7
{[%clk 00:30:30]} {[%emt 00:00:08]} 24. Qe4+ {[%clk 00:26:08]} {[%emt
00:00:27]} 1-0

[Event "Juniorallsvenskan 2019, Division 1 and 2"]
[Site "Molnlycke kulturhus, Biblioteksgatan 2, Molnlycke, Sweden"]
[Date "2019.11.22"]
[Round "1.19"]
[White "Mena, Markus"]
[Black "Dingertz, Erik"]
[Result "0-1"]
[TimeControl "90 minutes + 30 seconds per move from move one"]
[WhiteFideId "1745123"]
[BlackFideId "1741578"]
[WhiteElo "1405"]
[BlackElo "1892"]

1. e4 {[%clk 01:30:57]} {[%emt 00:00:02]} e5 {[%clk 01:30:26]} {[%emt
00:00:28]} 2. Nf3 {[%clk 01:31:24]} {[%emt 00:00:10]} Nc6 {[%clk 01:30:41]}
{[%emt 00:00:14]} 3. Bb5 {[%clk 01:31:46]} {[%emt 00:00:08]} a6 {[%clk
01:30:49]} {[%emt 00:00:22]} 4. Ba4 {[%clk 01:32:09]} {[%emt 00:00:07]} Nf6
{[%clk 01:31:12]} {[%emt 00:00:06]} 5. O-O {[%clk 01:32:29]} {[%emt 00:00:11]}
b5 {[%clk 01:31:17]} {[%emt 00:00:25]} 6. Bb3 {[%clk 01:32:48]} {[%emt
00:00:12]} Bc5 {[%clk 01:31:39]} {[%emt 00:00:06]} 7. Re1 {[%clk 01:32:24]}
{[%emt 00:00:55]} O-O {[%clk 01:32:00]} {[%emt 00:00:09]} 8. c3 {[%clk
01:31:34]} {[%emt 00:01:21]} d6 {[%clk 01:32:16]} {[%emt 00:00:13]} 9. d4
{[%emt 00:02:33]} Bb6 {[%clk 01:32:37]} {[%emt 00:00:07]} 10. h3 {[%clk
01:26:29]} {[%emt 00:03:35]} Bb7 {[%clk 01:25:31]} {[%emt 00:07:36]} 11. Bg5
{[%clk 01:23:28]} {[%emt 00:03:30]} h6 {[%clk 01:24:18]} {[%emt 00:01:43]} 12.
Bh4 {[%clk 01:23:31]} {[%emt 00:00:28]} Re8 {[%clk 01:23:35]} {[%emt 00:01:12]}
13. Nbd2 {[%clk 01:20:54]} {[%emt 00:03:07]} exd4 {[%clk 01:14:30]} {[%emt
00:09:35]} 14. cxd4 {[%clk 01:16:35]} {[%emt 00:04:50]} Nxd4 {[%clk 01:14:06]}
{[%emt 00:00:52]} 15. Nxd4 {[%clk 01:14:40]} {[%emt 00:02:25]} Bxd4 {[%clk
01:14:27]} {[%emt 00:00:10]} 16. Rb1 {[%clk 01:12:05]} {[%emt 00:03:05]} g5
{[%clk 01:00:35]} {[%emt 00:14:21]} 17. Bg3 {[%clk 01:11:28]} {[%emt 00:01:07]}
Nd7 {[%clk 00:45:39]} {[%emt 00:15:27]} 18. Nf3 {[%clk 00:59:20]} {[%emt
00:12:38]} Bb6 {[%clk 00:42:42]} {[%emt 00:03:27]} 19. Bc2 {[%clk 00:57:03]}
{[%emt 00:02:48]} Ne5 {[%clk 00:41:18]} {[%emt 00:01:51]} 20. Nxe5 {[%clk
00:55:15]} {[%emt 00:02:19]} dxe5 {[%clk 00:41:40]} {[%emt 00:00:08]} 21. Qf3
{[%clk 00:53:30]} {[%emt 00:02:16]} Kg7 {[%clk 00:39:39]} {[%emt 00:02:30]} 22.
Rbd1 {[%clk 00:49:11]} {[%emt 00:04:50]} Qf6 {[%clk 00:39:44]} {[%emt
00:00:25]} 23. Qc3 {[%clk 00:48:14]} {[%emt 00:01:27]} Rac8 {[%clk 00:35:45]}
{[%emt 00:04:29]} 24. Bb3 {[%clk 00:43:12]} {[%emt 00:05:33]} Bd4 {[%clk
00:35:19]} {[%emt 00:00:55]} 25. Qc2 {[%clk 00:42:01]} {[%emt 00:01:41]} c5
{[%clk 00:34:04]} {[%emt 00:01:45]} 26. Bd5 {[%clk 00:39:38]} {[%emt 00:02:53]}
Bxd5 {[%clk 00:33:16]} {[%emt 00:01:18]} 27. exd5 {[%clk 00:39:42]} {[%emt
00:00:26]} Qd6 {[%clk 00:32:46]} {[%emt 00:00:59]} 28. Qe2 {[%clk 00:33:48]}
{[%emt 00:06:25]} f6 {[%clk 00:32:10]} {[%emt 00:01:06]} 29. b3 {[%clk
00:32:59]} {[%emt 00:01:20]} Qxd5 {[%clk 00:32:10]} {[%emt 00:00:29]} 30. Qg4
{[%clk 00:32:09]} {[%emt 00:01:21]} Qf7 {[%clk 00:30:00]} {[%emt 00:02:39]} 31.
Rc1 {[%clk 00:30:07]} {[%emt 00:02:33]} f5 {[%clk 00:29:45]} {[%emt 00:00:44]}
32. Qe2 {[%clk 00:29:31]} {[%emt 00:01:05]} f4 {[%clk 00:30:01]} {[%emt
00:00:15]} 33. Bh2 {[%clk 00:29:55]} {[%emt 00:00:06]} Qf5 {[%clk 00:29:50]}
{[%emt 00:00:40]} 34. Rc2 {[%clk 00:29:17]} {[%emt 00:01:09]} e4 {[%clk
00:29:19]} {[%emt 00:01:01]} 35. Rec1 {[%clk 00:27:03]} {[%emt 00:02:43]} e3
{[%clk 00:28:56]} {[%emt 00:00:54]} 36. b4 {[%clk 00:25:45]} {[%emt 00:01:48]}
exf2+ {[%clk 00:29:16]} {[%emt 00:00:09]} 37. Kf1 {[%clk 00:25:52]} {[%emt
00:00:24]} Rxe2 {[%clk 00:29:40]} {[%emt 00:00:06]} 38. Rxe2 {[%clk 00:26:06]}
{[%emt 00:00:16]} Qd3 {[%clk 00:29:40]} {[%emt 00:00:29]} 39. Rcc2 {[%clk
00:25:51]} {[%emt 00:00:46]} Qd1+ {[%clk 00:30:01]} {[%emt 00:00:09]} 0-1

[Event "Juniorallsvenskan 2019, Division 1 and 2"]
[Site "Molnlycke kulturhus, Biblioteksgatan 2, Molnlycke, Sweden"]
[Date "2019.11.22"]
[Round "1.21"]
[White "Wernberg, Hugo"]
[Black "Klosinski, Daniel"]
[Result "1/2-1/2"]
[TimeControl "90 minutes + 30 seconds per move from move one"]
[WhiteFideId "1737511"]
[BlackFideId "1726323"]
[WhiteElo "2020"]
[BlackElo "1742"]

1. e4 {[%clk 01:30:57]} {[%emt 00:00:02]} c5 {[%clk 01:30:52]} {[%emt
00:00:08]} 2. Nf3 {[%clk 01:31:09]} {[%emt 00:00:18]} d6 {[%clk 01:31:07]}
{[%emt 00:00:15]} 3. d4 {[%clk 01:31:33]} {[%emt 00:00:06]} cxd4 {[%clk
01:31:32]} {[%emt 00:00:06]} 4. Nxd4 {[%clk 01:31:58]} {[%emt 00:00:05]} Nf6
{[%clk 01:31:56]} {[%emt 00:00:05]} 5. Nc3 {[%clk 01:32:20]} {[%emt 00:00:08]}
a6 {[%clk 01:31:43]} {[%emt 00:00:44]} 6. Bg5 {[%clk 01:32:17]} {[%emt
00:00:32]} e6 {[%clk 01:31:46]} {[%emt 00:00:27]} 7. f4 {[%clk 01:32:26]}
{[%emt 00:00:21]} Be7 {[%clk 01:31:35]} {[%emt 00:00:41]} 8. Qf3 {[%clk
01:32:28]} {[%emt 00:00:29]} Nc6 {[%clk 01:31:09]} {[%emt 00:00:56]} 9. O-O-O
{[%clk 01:30:36]} {[%emt 00:02:22]} Nxd4 {[%clk 01:20:43]} {[%emt 00:10:56]} 10.
Rxd4 {[%clk 01:30:51]} {[%emt 00:00:15]} Qb6 {[%clk 01:21:00]} {[%emt
00:00:13]} 11. Qd1 {[%clk 01:23:13]} {[%emt 00:08:08]} h6 {[%clk 01:12:37]}
{[%emt 00:08:52]} 12. Bxf6 {[%clk 01:21:22]} {[%emt 00:02:22]} gxf6 {[%clk
01:11:44]} {[%emt 00:01:23]} 13. Bc4 {[%clk 01:15:18]} {[%emt 00:06:34]} Qc5
{[%clk 01:06:49]} {[%emt 00:05:24]} 14. Bb3 {[%clk 01:13:10]} {[%emt 00:02:38]}
b5 {[%clk 01:04:38]} {[%emt 00:02:42]} 15. f5 {[%clk 01:06:04]} {[%emt
00:07:36]} Rg8 {[%clk 00:55:38]} {[%emt 00:09:29]} 16. Rd2 {[%clk 01:02:26]}
{[%emt 00:04:09]} Rg5 {[%clk 00:51:57]} {[%emt 00:04:10]} 17. Qf3 {[%clk
00:46:52]} {[%emt 00:16:04]} Qe5 {[%clk 00:50:54]} {[%emt 00:01:33]} 18. Nd5
{[%clk 00:36:53]} {[%emt 00:10:30]} Ra7 {[%clk 00:45:06]} {[%emt 00:06:18]} 19.
Qe3 {[%clk 00:28:12]} {[%emt 00:09:11]} Rb7 {[%clk 00:45:13]} {[%emt 00:00:23]}
20. Nb6 {[%emt 00:03:02]} Bd7 {[%clk 00:45:09]} {[%emt 00:00:34]} 21. Nxd7
{[%clk 00:25:24]} {[%emt 00:00:46]} Kxd7 {[%clk 00:45:23]} {[%emt 00:00:16]} 22.
g3 {[%clk 00:16:23]} {[%emt 00:09:30]} h5 {[%clk 00:44:57]} {[%emt 00:00:56]}
23. Qd4 {[%clk 00:14:58]} {[%emt 00:01:55]} Rg4 {[%clk 00:40:47]} {[%emt
00:04:40]} 24. Re1 {[%clk 00:13:33]} {[%emt 00:01:55]} h4 {[%clk 00:40:11]}
{[%emt 00:01:07]} 25. Qxe5 {[%clk 00:13:03]} {[%emt 00:01:00]} fxe5 {[%clk
00:40:24]} {[%emt 00:00:17]} 26. gxh4 {[%clk 00:12:28]} {[%emt 00:01:05]} Bxh4
{[%clk 00:40:40]} {[%emt 00:00:14]} 27. h3 {[%clk 00:11:03]} {[%emt 00:01:55]}
Rg8 {[%clk 00:37:39]} {[%emt 00:03:31]} 28. fxe6+ {[%clk 00:10:52]} {[%emt
00:00:40]} fxe6 {[%clk 00:37:38]} {[%emt 00:00:31]} 29. Rf1 {[%clk 00:11:03]}
{[%emt 00:00:19]} Bg5 {[%clk 00:37:25]} {[%emt 00:00:43]} 30. Rf7+ {[%clk
00:11:14]} {[%emt 00:00:19]} Kc6 {[%clk 00:37:42]} {[%emt 00:00:12]} 31. Rxb7
{[%clk 00:08:58]} {[%emt 00:02:47]} Kxb7 {[%clk 00:37:00]} {[%emt 00:01:12]} 32.
Bxe6 {[%clk 00:08:43]} {[%emt 00:00:45]} Rf8 {[%clk 00:33:45]} {[%emt
00:03:42]} 33. Kd1 {[%clk 00:06:21]} {[%emt 00:02:55]} Bxd2 {[%clk 00:34:08]}
{[%emt 00:00:06]} 34. Kxd2 {[%clk 00:06:43]} {[%emt 00:00:09]} Rf4 {[%clk
00:33:13]} {[%emt 00:01:25]} 35. Ke3 {[%clk 00:04:50]} {[%emt 00:02:23]} Kb6
{[%clk 00:32:09]} {[%emt 00:01:33]} 36. c3 {[%clk 00:02:32]} {[%emt 00:02:49]}
Ka5 {[%clk 00:29:58]} {[%emt 00:02:41]} 37. Bc8 {[%clk 00:01:27]} {[%emt
00:01:35]} Kb6 {[%clk 00:27:56]} {[%emt 00:02:32]} 38. Be6 {[%clk 00:01:48]}
{[%emt 00:00:08]} a5 {[%clk 00:27:20]} {[%emt 00:01:07]} 39. b4 {[%clk
00:02:17]} Rf1 {[%clk 00:24:55]} {[%emt 00:02:54]} 40. Bb3 {[%clk 00:01:09]}
{[%emt 00:01:39]} Rc1 {[%clk 00:24:13]} {[%emt 00:01:09]} 41. Kd3 {[%clk
00:01:17]} {[%emt 00:00:25]} Rg1 {[%clk 00:23:53]} {[%emt 00:00:50]} 42. Be6
{[%clk 00:01:31]} {[%emt 00:00:15]} Rg3+ {[%clk 00:23:15]} {[%emt 00:01:08]} 43.
Kd2 {[%clk 00:01:18]} {[%emt 00:00:44]} Kc7 {[%clk 00:20:19]} {[%emt 00:03:25]}
44. Bg4 {[%clk 00:01:18]} {[%emt 00:00:31]} Rg2+ {[%clk 00:20:33]} {[%emt
00:00:14]} 45. Be2 {[%clk 00:01:28]} {[%emt 00:00:20]} Rh2 {[%clk 00:19:21]}
{[%emt 00:01:43]} 46. bxa5 {[%clk 00:01:43]} {[%emt 00:00:16]} Kb7 {[%clk
00:18:56]} {[%emt 00:00:55]} 47. Kd1 {[%clk 00:00:39]} {[%emt 00:01:34]} Ka6
{[%clk 00:15:49]} {[%emt 00:03:37]} 48. a4 {[%clk 00:00:50]} {[%emt 00:00:18]}
Kxa5 {[%clk 00:15:52]} {[%emt 00:00:27]} 49. axb5 {[%clk 00:01:00]} {[%emt
00:00:21]} Rxh3 {[%clk 00:15:51]} {[%emt 00:00:31]} 50. Kd2 {[%clk 00:01:21]}
{[%emt 00:00:09]} Kb6 {[%clk 00:15:54]} {[%emt 00:00:26]} 51. Bd3 {[%clk
00:00:59]} {[%emt 00:00:52]} Kc5 {[%clk 00:15:52]} {[%emt 00:00:32]} 52. Be2
{[%clk 00:01:11]} {[%emt 00:00:19]} Rh2 {[%clk 00:12:23]} {[%emt 00:03:58]} 53.
Ke3 {[%clk 00:01:19]} {[%emt 00:00:23]} Rh3+ {[%clk 00:11:50]} {[%emt
00:01:02]} 54. Kd2 {[%clk 00:01:42]} {[%emt 00:00:07]} Rh2 {[%clk 00:12:07]}
{[%emt 00:00:13]} 55. Ke3 {[%clk 00:02:11]} {[%emt 00:00:02]} Rh3+ {[%clk
00:12:29]} {[%emt 00:00:07]} 56. Kd4+ {[%emt 00:00:08]} Kd5+ 1/2-1/2